[Event "Titled Tuesday Blitz September 27 Early 2022"]
[White "Jimenez Almeida, Luis David"]
[Black "Piesik, Piotr"]
[WhiteFideId "22242244"]
[BlackFideId "1136194"]
[WhiteElo "2077"]
[BlackElo "2221"]
[Result "0-1"]
[Round "06"]
[TimeControl "180+1"]
[Date "2022.09.27"]
[WhiteClock "0:00:07"]
[BlackClock "0:00:20"]

1. e4 {[%clk 0:03:00]}  g6 {[%clk 0:02:47]} 2. h4 {[%clk 0:02:59]}  h5 {[%clk 0:02:45]} 3. d4 {[%clk 0:02:59]}  c6 {[%clk 0:02:45]} 4. Nc3 {[%clk 0:02:58]}  d5 {[%clk 0:02:45]} 5. e5 {[%clk 0:02:57]}  Nh6 {[%clk 0:02:45]} 6. Nh3 {[%clk 0:02:57]}  Nf5 {[%clk 0:02:43]} 7. Ng5 {[%clk 0:02:56]}  f6 {[%clk 0:02:42]} 8. Nf3 {[%clk 0:02:53]}  Bg7 {[%clk 0:02:41]} 9. Bf4 {[%clk 0:02:50]}  Nd7 {[%clk 0:02:40]} 10. Qd2 {[%clk 0:02:38]}  Nf8 {[%clk 0:02:39]} 11. O-O-O {[%clk 0:02:35]}  Ne6 {[%clk 0:02:37]} 12. g3 {[%clk 0:02:19]}  Nxf4 {[%clk 0:02:34]} 13. gxf4 {[%clk 0:02:19]}  Nh6 {[%clk 0:02:23]} 14. Rg1 {[%clk 0:02:15]}  Bf5 {[%clk 0:02:21]} 15. Bd3 {[%clk 0:02:14]}  Kf7 {[%clk 0:02:20]} 16. Ne2 {[%clk 0:01:55]}  Qd7 {[%clk 0:02:17]} 17. Ng3 {[%clk 0:01:54]}  b5 {[%clk 0:02:12]} 18. Nxf5 {[%clk 0:01:41]}  Nxf5 {[%clk 0:02:13]} 19. Rde1 {[%clk 0:01:35]}  e6 {[%clk 0:02:09]} 20. exf6 {[%clk 0:01:32]}  Bxf6 {[%clk 0:02:09]} 21. Ne5+ {[%clk 0:01:27]}  Bxe5 {[%clk 0:02:09]} 22. fxe5 {[%clk 0:01:28]}  Qe7 {[%clk 0:01:58]} 23. Rg5 {[%clk 0:01:22]}  Rhg8 {[%clk 0:01:50]} 24. Bxf5 {[%clk 0:01:08]}  exf5 {[%clk 0:01:43]} 25. e6+ {[%clk 0:01:05]}  Kg7 {[%clk 0:01:40]} 26. Qf4 {[%clk 0:01:05]}  Raf8 {[%clk 0:01:32]} 27. Qe5+ {[%clk 0:00:57]}  Kh7 {[%clk 0:01:25]} 28. Kb1 {[%clk 0:00:37]}  Rf6 {[%clk 0:01:24]} 29. b3 {[%clk 0:00:36]}  Re8 {[%clk 0:01:21]} 30. Qg3 {[%clk 0:00:25]}  Rxe6 {[%clk 0:01:16]} 31. Rxe6 {[%clk 0:00:25]}  Qxe6 {[%clk 0:01:17]} 32. Kb2 {[%clk 0:00:25]}  b4 {[%clk 0:01:13]} 33. Qc7+ {[%clk 0:00:24]}  Re7 {[%clk 0:01:12]} 34. Qb8 {[%clk 0:00:24]}  a5 {[%clk 0:01:10]} 35. Qb6 {[%clk 0:00:24]}  Qf6 {[%clk 0:01:09]} 36. Rg3 {[%clk 0:00:20]}  Qxh4 {[%clk 0:01:03]} 37. Rd3 {[%clk 0:00:18]}  Qxf2 {[%clk 0:00:45]} 38. Qxa5 {[%clk 0:00:18]}  Qe1 {[%clk 0:00:44]} 39. Qc5 {[%clk 0:00:16]}  Re3 {[%clk 0:00:31]} 40. Rxe3 {[%clk 0:00:11]}  Qxe3 {[%clk 0:00:32]} 41. Qxb4 {[%clk 0:00:11]}  h4 {[%clk 0:00:30]} 42. a4 {[%clk 0:00:12]}  h3 {[%clk 0:00:30]} 43. Qb7+ {[%clk 0:00:11]}  Kh6 {[%clk 0:00:29]} 44. Qc8 {[%clk 0:00:06]}  Qxd4+ {[%clk 0:00:29]} 45. Ka2 {[%clk 0:00:06]}  Kg5 {[%clk 0:00:27]} 46. Qd8+ {[%clk 0:00:06]}  Kg4 {[%clk 0:00:26]} 47. a5 {[%clk 0:00:07]}  h2 {[%clk 0:00:24]} 48. Qe8 {[%clk 0:00:07]}  h1=Q {[%clk 0:00:20]} 0-1


[Site "https://www.chess.com"]

[Event "Titled Tuesday Blitz September 27 Early 2022"]
[White "Kalajzic, Ivan"]
[Black "Winkels, Marcel"]
[WhiteFideId "14506378"]
[BlackFideId "1003887"]
[WhiteElo "2163"]
[BlackElo "1900"]
[Result "1-0"]
[Round "06"]
[TimeControl "180+1"]
[Date "2022.09.27"]
[WhiteClock "0:00:56"]
[BlackClock "0:00:18"]

1. d4 {[%clk 0:03:00]}  Nf6 {[%clk 0:02:58]} 2. Nc3 {[%clk 0:03:00]}  d5 {[%clk 0:02:56]} 3. Bg5 {[%clk 0:02:59]}  Nbd7 {[%clk 0:02:53]} 4. e3 {[%clk 0:02:59]}  g6 {[%clk 0:02:49]} 5. f4 {[%clk 0:02:58]}  Bg7 {[%clk 0:02:49]} 6. Nf3 {[%clk 0:02:58]}  O-O {[%clk 0:02:49]} 7. Ne5 {[%clk 0:02:59]}  h6 {[%clk 0:02:40]} 8. Bh4 {[%clk 0:02:57]}  Nxe5 {[%clk 0:02:34]} 9. dxe5 {[%clk 0:02:56]}  Ne4 {[%clk 0:02:30]} 10. Nxd5 {[%clk 0:02:51]}  g5 {[%clk 0:02:21]} 11. Bg3 {[%clk 0:02:43]}  c6 {[%clk 0:02:08]} 12. Nc3 {[%clk 0:02:41]}  Nxc3 {[%clk 0:02:06]} 13. bxc3 {[%clk 0:02:40]}  Qb6 {[%clk 0:02:07]} 14. Qd4 {[%clk 0:02:39]}  Qb2 {[%clk 0:02:04]} 15. Rd1 {[%clk 0:02:37]}  Qxc2 {[%clk 0:01:57]} 16. Rd2 {[%clk 0:02:25]}  Qc1+ {[%clk 0:01:48]} 17. Kf2 {[%clk 0:02:24]}  Be6 {[%clk 0:01:43]} 18. Rg1 {[%clk 0:02:22]}  c5 {[%clk 0:01:28]} 19. Qd3 {[%clk 0:02:17]}  Bc4 {[%clk 0:01:27]} 20. Qd7 {[%clk 0:02:15]}  Be6 {[%clk 0:01:16]} 21. Qd3 {[%clk 0:02:06]}  Bc4 {[%clk 0:01:11]} 22. Qc2 {[%clk 0:02:03]}  Qxc2 {[%clk 0:01:09]} 23. Rxc2 {[%clk 0:02:04]}  Bxf1 {[%clk 0:01:08]} 24. Rxf1 {[%clk 0:02:03]}  Rfd8 {[%clk 0:01:09]} 25. Rb1 {[%clk 0:02:01]}  b6 {[%clk 0:01:07]} 26. a4 {[%clk 0:02:00]}  Rd3 {[%clk 0:01:05]} 27. a5 {[%clk 0:02:00]}  Rb8 {[%clk 0:01:04]} 28. f5 {[%clk 0:01:58]}  e6 {[%clk 0:00:54]} 29. e4 {[%clk 0:01:51]}  b5 {[%clk 0:00:52]} 30. c4 {[%clk 0:01:48]}  b4 {[%clk 0:00:52]} 31. Ke2 {[%clk 0:01:48]}  Rbd8 {[%clk 0:00:51]} 32. Be1 {[%clk 0:01:41]}  Bxe5 {[%clk 0:00:48]} 33. h3 {[%clk 0:01:32]}  Bf4 {[%clk 0:00:45]} 34. fxe6 {[%clk 0:01:28]}  fxe6 {[%clk 0:00:45]} 35. Bf2 {[%clk 0:01:25]}  Rd2+ {[%clk 0:00:43]} 36. Rxd2 {[%clk 0:01:25]}  Rxd2+ {[%clk 0:00:43]} 37. Kf3 {[%clk 0:01:25]}  Rd3+ {[%clk 0:00:42]} 38. Kg4 {[%clk 0:01:25]}  Kg7 {[%clk 0:00:39]} 39. Kh5 {[%clk 0:01:16]}  Ra3 {[%clk 0:00:37]} 40. Bxc5 {[%clk 0:01:15]}  Rxa5 {[%clk 0:00:31]} 41. Bxb4 {[%clk 0:01:15]}  Ra4 {[%clk 0:00:27]} 42. c5 {[%clk 0:01:09]}  a5 {[%clk 0:00:25]} 43. Bc3+ {[%clk 0:01:05]}  Kh7 {[%clk 0:00:23]} 44. Rb7+ {[%clk 0:00:59]}  Kg8 {[%clk 0:00:22]} 45. e5 {[%clk 0:00:55]}  Rc4 {[%clk 0:00:20]} 46. Kg6 {[%clk 0:00:56]}  Rxc3 {[%clk 0:00:18]} 47. Rb8# {[%clk 0:00:56]} 1-0


[Site "https://www.chess.com"]

[Event "Titled Tuesday Blitz September 27 Early 2022"]
[White "Kamsky, Gata"]
[Black "Agasarov, Benik"]
[WhiteFideId "2000024"]
[BlackFideId "13314823"]
[WhiteElo "2666"]
[BlackElo "2152"]
[Result "1-0"]
[Round "06"]
[TimeControl "180+1"]
[Date "2022.09.27"]
[WhiteClock "0:00:05"]
[BlackClock "0:00:08"]

1. e4 {[%clk 0:03:00]}  e5 {[%clk 0:02:57]} 2. Nf3 {[%clk 0:02:55]}  Nc6 {[%clk 0:02:57]} 3. Bb5 {[%clk 0:02:55]}  a6 {[%clk 0:02:54]} 4. Ba4 {[%clk 0:02:54]}  Nf6 {[%clk 0:02:54]} 5. O-O {[%clk 0:02:53]}  b5 {[%clk 0:02:54]} 6. Bb3 {[%clk 0:02:52]}  Bc5 {[%clk 0:02:54]} 7. c3 {[%clk 0:02:46]}  d6 {[%clk 0:02:50]} 8. d4 {[%clk 0:02:45]}  Bb6 {[%clk 0:02:50]} 9. h3 {[%clk 0:02:43]}  Bb7 {[%clk 0:02:40]} 10. Re1 {[%clk 0:02:38]}  O-O {[%clk 0:02:40]} 11. Be3 {[%clk 0:02:37]}  exd4 {[%clk 0:02:20]} 12. cxd4 {[%clk 0:02:36]}  Na5 {[%clk 0:02:20]} 13. d5 {[%clk 0:02:30]}  Nxb3 {[%clk 0:02:12]} 14. Qxb3 {[%clk 0:02:27]}  Ba5 {[%clk 0:02:06]} 15. Bd2 {[%clk 0:02:13]}  Bb6 {[%clk 0:02:05]} 16. Nc3 {[%clk 0:02:11]}  Re8 {[%clk 0:02:03]} 17. a4 {[%clk 0:02:06]}  bxa4 {[%clk 0:01:53]} 18. Rxa4 {[%clk 0:02:01]}  Nd7 {[%clk 0:01:50]} 19. Raa1 {[%clk 0:01:52]}  Nc5 {[%clk 0:01:47]} 20. Qc2 {[%clk 0:01:49]}  a5 {[%clk 0:01:47]} 21. Na4 {[%clk 0:01:37]}  Nxa4 {[%clk 0:01:43]} 22. Rxa4 {[%clk 0:01:25]}  Bc8 {[%clk 0:01:14]} 23. Bc3 {[%clk 0:01:16]}  Bd7 {[%clk 0:01:11]} 24. Raa1 {[%clk 0:01:14]}  a4 {[%clk 0:01:07]} 25. e5 {[%clk 0:01:12]}  Bc5 {[%clk 0:00:45]} 26. Qd2 {[%clk 0:00:42]}  c6 {[%clk 0:00:24]} 27. Rad1 {[%clk 0:00:33]}  cxd5 {[%clk 0:00:24]} 28. Qxd5 {[%clk 0:00:32]}  Be6 {[%clk 0:00:24]} 29. Qe4 {[%clk 0:00:31]}  Bb3 {[%clk 0:00:22]} 30. Rd2 {[%clk 0:00:31]}  d5 {[%clk 0:00:18]} 31. Qg4 {[%clk 0:00:31]}  Re6 {[%clk 0:00:16]} 32. Nd4 {[%clk 0:00:27]}  Rg6 {[%clk 0:00:15]} 33. Qf4 {[%clk 0:00:26]}  Bxd4 {[%clk 0:00:15]} 34. Rxd4 {[%clk 0:00:25]}  Raa6 {[%clk 0:00:14]} 35. Kh2 {[%clk 0:00:24]}  Qg5 {[%clk 0:00:13]} 36. Qxg5 {[%clk 0:00:22]}  Rxg5 {[%clk 0:00:13]} 37. f4 {[%clk 0:00:22]}  Rgg6 {[%clk 0:00:14]} 38. f5 {[%clk 0:00:22]}  Rgc6 {[%clk 0:00:14]} 39. Rb4 {[%clk 0:00:20]}  Rab6 {[%clk 0:00:14]} 40. Rxb6 {[%clk 0:00:19]}  Rxb6 {[%clk 0:00:15]} 41. Re2 {[%clk 0:00:17]}  Kf8 {[%clk 0:00:13]} 42. g4 {[%clk 0:00:16]}  Ke8 {[%clk 0:00:13]} 43. Kg3 {[%clk 0:00:16]}  g6 {[%clk 0:00:13]} 44. Kf4 {[%clk 0:00:16]}  gxf5 {[%clk 0:00:14]} 45. gxf5 {[%clk 0:00:15]}  Rh6 {[%clk 0:00:12]} 46. Rg2 {[%clk 0:00:13]}  Rxh3 {[%clk 0:00:10]} 47. Rg8+ {[%clk 0:00:12]}  Kd7 {[%clk 0:00:11]} 48. Rg7 {[%clk 0:00:11]}  Ke8 {[%clk 0:00:11]} 49. e6 {[%clk 0:00:08]}  fxe6 {[%clk 0:00:11]} 50. fxe6 {[%clk 0:00:08]}  d4 {[%clk 0:00:11]} 51. Bb4 {[%clk 0:00:05]}  Re3 {[%clk 0:00:08]} 52. Rg8# {[%clk 0:00:05]} 1-0


[Site "https://www.chess.com"]

[Event "Titled Tuesday Blitz September 27 Early 2022"]
[White "Kislov, Oleg"]
[Black "Mirzoev, Azer"]
[WhiteFideId "13503774"]
[BlackFideId "13400304"]
[WhiteElo "2185"]
[BlackElo "2525"]
[Result "1-0"]
[Round "06"]
[TimeControl "180+1"]
[Date "2022.09.27"]
[WhiteClock "0:00:05"]
[BlackClock "0:00:04"]

1. e4 {[%clk 0:03:00]}  c5 {[%clk 0:02:59]} 2. Nf3 {[%clk 0:03:00]}  d6 {[%clk 0:02:59]} 3. c3 {[%clk 0:03:00]}  Nf6 {[%clk 0:02:59]} 4. Be2 {[%clk 0:03:00]}  Nbd7 {[%clk 0:02:56]} 5. Qc2 {[%clk 0:02:59]}  Qc7 {[%clk 0:02:56]} 6. d4 {[%clk 0:02:58]}  cxd4 {[%clk 0:02:55]} 7. Nxd4 {[%clk 0:02:59]}  a6 {[%clk 0:02:56]} 8. a4 {[%clk 0:02:56]}  g6 {[%clk 0:02:56]} 9. O-O {[%clk 0:02:55]}  Bg7 {[%clk 0:02:56]} 10. a5 {[%clk 0:02:42]}  O-O {[%clk 0:02:55]} 11. Be3 {[%clk 0:02:31]}  Nc5 {[%clk 0:02:52]} 12. Nd2 {[%clk 0:02:29]}  d5 {[%clk 0:02:51]} 13. exd5 {[%clk 0:01:54]}  Nxd5 {[%clk 0:02:50]} 14. Bg5 {[%clk 0:01:52]}  Nf4 {[%clk 0:02:33]} 15. Bf3 {[%clk 0:01:41]}  h6 {[%clk 0:02:30]} 16. Bh4 {[%clk 0:01:32]}  e5 {[%clk 0:02:27]} 17. Ne2 {[%clk 0:01:19]}  Bf5 {[%clk 0:02:24]} 18. Ne4 {[%clk 0:01:05]}  g5 {[%clk 0:02:06]} 19. Nf6+ {[%clk 0:00:58]}  Bxf6 {[%clk 0:01:52]} 20. Qxf5 {[%clk 0:00:58]}  Kg7 {[%clk 0:01:26]} 21. Bg3 {[%clk 0:00:49]}  Rad8 {[%clk 0:01:25]} 22. h4 {[%clk 0:00:40]}  Rd2 {[%clk 0:01:18]} 23. Rfe1 {[%clk 0:00:29]}  Rxb2 {[%clk 0:01:03]} 24. Rad1 {[%clk 0:00:21]}  Qc8 {[%clk 0:00:56]} 25. Qxc8 {[%clk 0:00:14]}  Rxc8 {[%clk 0:00:55]} 26. hxg5 {[%clk 0:00:14]}  hxg5 {[%clk 0:00:54]} 27. Bxf4 {[%clk 0:00:11]}  exf4 {[%clk 0:00:53]} 28. Nd4 {[%clk 0:00:08]}  Kf8 {[%clk 0:00:33]} 29. Nf5 {[%clk 0:00:09]}  Rd8 {[%clk 0:00:22]} 30. Rxd8+ {[%clk 0:00:08]}  Bxd8 {[%clk 0:00:21]} 31. Rd1 {[%clk 0:00:09]}  Bxa5 {[%clk 0:00:20]} 32. Rd5 {[%clk 0:00:06]}  Bb6 {[%clk 0:00:16]} 33. Nd4 {[%clk 0:00:06]}  Nd3 {[%clk 0:00:10]} 34. Rxg5 {[%clk 0:00:04]}  Nxf2 {[%clk 0:00:08]} 35. Rf5 {[%clk 0:00:03]}  Nd3 {[%clk 0:00:07]} 36. Kh2 {[%clk 0:00:03]}  Ne1 {[%clk 0:00:06]} 37. Bd5 {[%clk 0:00:03]}  Bc7 {[%clk 0:00:06]} 38. Rxf7+ {[%clk 0:00:04]}  Ke8 {[%clk 0:00:05]} 39. Rxc7 {[%clk 0:00:05]}  b5 {[%clk 0:00:05]} 40. Ne6 {[%clk 0:00:05]}  a5 {[%clk 0:00:04]} 41. Bc6# {[%clk 0:00:05]} 1-0


[Site "https://www.chess.com"]

[Event "Titled Tuesday Blitz September 27 Early 2022"]
[White "Korelskiy, Egor"]
[Black "Deuer, Marius"]
[WhiteFideId "34329064"]
[BlackFideId "16236432"]
[WhiteElo "2071"]
[BlackElo "2059"]
[Result "1-0"]
[Round "06"]
[TimeControl "180+1"]
[Date "2022.09.27"]
[WhiteClock "0:01:30"]
[BlackClock "0:01:13"]

1. e4 {[%clk 0:03:00]}  c5 {[%clk 0:02:55]} 2. Nf3 {[%clk 0:03:00]}  Nc6 {[%clk 0:02:53]} 3. Bb5 {[%clk 0:02:59]}  Nd4 {[%clk 0:02:52]} 4. Nxd4 {[%clk 0:02:57]}  cxd4 {[%clk 0:02:53]} 5. O-O {[%clk 0:02:57]}  e6 {[%clk 0:02:51]} 6. d3 {[%clk 0:02:54]}  a6 {[%clk 0:02:49]} 7. Bc4 {[%clk 0:02:53]}  b5 {[%clk 0:02:49]} 8. Bb3 {[%clk 0:02:53]}  Bc5 {[%clk 0:02:47]} 9. Nd2 {[%clk 0:02:52]}  Ne7 {[%clk 0:02:47]} 10. f4 {[%clk 0:02:51]}  O-O {[%clk 0:02:45]} 11. Nf3 {[%clk 0:02:50]}  f5 {[%clk 0:02:44]} 12. Kh1 {[%clk 0:02:46]}  Bb7 {[%clk 0:02:39]} 13. Re1 {[%clk 0:02:45]}  h6 {[%clk 0:02:26]} 14. c3 {[%clk 0:02:40]}  dxc3 {[%clk 0:02:19]} 15. bxc3 {[%clk 0:02:39]}  fxe4 {[%clk 0:02:11]} 16. dxe4 {[%clk 0:02:38]}  d5 {[%clk 0:02:11]} 17. exd5 {[%clk 0:02:34]}  Bxd5 {[%clk 0:02:07]} 18. Bxd5 {[%clk 0:02:30]}  Nxd5 {[%clk 0:01:57]} 19. Qc2 {[%clk 0:02:25]}  Nxf4 {[%clk 0:01:50]} 20. Bxf4 {[%clk 0:02:24]}  Rxf4 {[%clk 0:01:50]} 21. Rxe6 {[%clk 0:02:22]}  Qc7 {[%clk 0:01:49]} 22. Rae1 {[%clk 0:02:18]}  Raf8 {[%clk 0:01:50]} 23. Re8 {[%clk 0:02:14]}  Rxe8 {[%clk 0:01:46]} 24. Rxe8+ {[%clk 0:02:13]}  Rf8 {[%clk 0:01:47]} 25. Rxf8+ {[%clk 0:02:05]}  Kxf8 {[%clk 0:01:40]} 26. Qf5+ {[%clk 0:01:59]}  Kg8 {[%clk 0:01:40]} 27. Ne5 {[%clk 0:01:58]}  Bd6 {[%clk 0:01:33]} 28. Qe6+ {[%clk 0:01:56]}  Kh7 {[%clk 0:01:34]} 29. Nf3 {[%clk 0:01:35]}  Qxc3 {[%clk 0:01:22]} 30. Qxd6 {[%clk 0:01:32]}  Qc1+ {[%clk 0:01:19]} 31. Ng1 {[%clk 0:01:32]}  Qc2 {[%clk 0:01:13]} 32. Qxa6 {[%clk 0:01:30]} 1-0


[Site "https://www.chess.com"]

[Event "Titled Tuesday Blitz September 27 Early 2022"]
[White "Kosakowski, Jakub"]
[Black "Sebenik, Matej"]
[WhiteFideId "1185080"]
[BlackFideId "14602296"]
[WhiteElo "2453"]
[BlackElo "2461"]
[Result "1-0"]
[Round "06"]
[TimeControl "180+1"]
[Date "2022.09.27"]
[WhiteClock "0:01:06"]
[BlackClock "0:00:04"]

1. d4 {[%clk 0:02:58]}  d5 {[%clk 0:02:59]} 2. Nf3 {[%clk 0:02:56]}  Nf6 {[%clk 0:02:59]} 3. Bg5 {[%clk 0:02:55]}  Ne4 {[%clk 0:02:56]} 4. Bf4 {[%clk 0:02:53]}  c5 {[%clk 0:02:56]} 5. e3 {[%clk 0:02:52]}  Nc6 {[%clk 0:02:55]} 6. Bd3 {[%clk 0:02:43]}  Qb6 {[%clk 0:02:44]} 7. Nc3 {[%clk 0:02:42]}  cxd4 {[%clk 0:02:30]} 8. exd4 {[%clk 0:02:38]}  Bf5 {[%clk 0:01:54]} 9. O-O {[%clk 0:02:26]}  e6 {[%clk 0:01:54]} 10. Nb5 {[%clk 0:02:15]}  Rc8 {[%clk 0:01:48]} 11. c4 {[%clk 0:02:06]}  dxc4 {[%clk 0:01:46]} 12. Bxc4 {[%clk 0:02:05]}  a6 {[%clk 0:01:41]} 13. d5 {[%clk 0:01:52]}  axb5 {[%clk 0:01:39]} 14. dxc6 {[%clk 0:01:51]}  bxc6 {[%clk 0:01:37]} 15. Bd3 {[%clk 0:01:52]}  Rd8 {[%clk 0:01:02]} 16. Qe2 {[%clk 0:01:43]}  Ng3 {[%clk 0:00:59]} 17. hxg3 {[%clk 0:01:23]}  Bxd3 {[%clk 0:01:00]} 18. Qe5 {[%clk 0:01:23]}  Bxf1 {[%clk 0:00:57]} 19. Rxf1 {[%clk 0:01:24]}  c5 {[%clk 0:00:48]} 20. Re1 {[%clk 0:01:19]}  f6 {[%clk 0:00:44]} 21. Qh5+ {[%clk 0:01:16]}  g6 {[%clk 0:00:42]} 22. Qh3 {[%clk 0:01:14]}  Kf7 {[%clk 0:00:42]} 23. g4 {[%clk 0:01:11]}  e5 {[%clk 0:00:20]} 24. Bg3 {[%clk 0:01:08]}  Bd6 {[%clk 0:00:11]} 25. g5 {[%clk 0:01:08]}  Rde8 {[%clk 0:00:04]} 26. gxf6 {[%clk 0:01:08]}  h6 {[%clk 0:00:04]} 27. Qd7+ {[%clk 0:01:06]} 1-0


[Site "https://www.chess.com"]

[Event "Titled Tuesday Blitz September 27 Early 2022"]
[White "Kostiukov, Alexandr"]
[Black "Ronka, Erik"]
[WhiteFideId "14108100"]
[BlackFideId "505080"]
[WhiteElo "2202"]
[BlackElo "2264"]
[Result "0-1"]
[Round "06"]
[TimeControl "180+1"]
[Date "2022.09.27"]
[WhiteClock "0:00:31"]
[BlackClock "0:00:47"]

1. g3 {[%clk 0:02:59]}  g6 {[%clk 0:02:56]} 2. Bg2 {[%clk 0:02:58]}  Bg7 {[%clk 0:02:56]} 3. c4 {[%clk 0:02:57]}  e5 {[%clk 0:02:55]} 4. Nf3 {[%clk 0:02:58]}  Nc6 {[%clk 0:02:55]} 5. O-O {[%clk 0:02:56]}  d6 {[%clk 0:02:55]} 6. Nc3 {[%clk 0:02:56]}  f5 {[%clk 0:02:56]} 7. d3 {[%clk 0:02:55]}  h6 {[%clk 0:02:56]} 8. Rb1 {[%clk 0:02:54]}  Nf6 {[%clk 0:02:57]} 9. b4 {[%clk 0:02:53]}  O-O {[%clk 0:02:57]} 10. b5 {[%clk 0:02:53]}  Ne7 {[%clk 0:02:58]} 11. a4 {[%clk 0:02:53]}  Rb8 {[%clk 0:02:56]} 12. a5 {[%clk 0:02:50]}  b6 {[%clk 0:02:57]} 13. Bd2 {[%clk 0:02:45]}  Bb7 {[%clk 0:02:56]} 14. Ra1 {[%clk 0:02:42]}  g5 {[%clk 0:02:55]} 15. axb6 {[%clk 0:02:41]}  axb6 {[%clk 0:02:55]} 16. Ra7 {[%clk 0:02:41]}  Ba8 {[%clk 0:02:14]} 17. Qb3 {[%clk 0:02:28]}  Kh8 {[%clk 0:02:13]} 18. Rfa1 {[%clk 0:02:26]}  g4 {[%clk 0:02:11]} 19. Nh4 {[%clk 0:02:24]}  Bxg2 {[%clk 0:02:10]} 20. Kxg2 {[%clk 0:02:20]}  f4 {[%clk 0:02:09]} 21. gxf4 {[%clk 0:02:05]}  Nh5 {[%clk 0:02:09]} 22. fxe5 {[%clk 0:01:39]}  Bxe5 {[%clk 0:02:10]} 23. Bxh6 {[%clk 0:01:31]}  Rg8 {[%clk 0:02:08]} 24. Be3 {[%clk 0:01:13]}  Nd5 {[%clk 0:02:06]} 25. Nxd5 {[%clk 0:01:06]}  Qxh4 {[%clk 0:02:07]} 26. Rh1 {[%clk 0:01:05]}  Qh3+ {[%clk 0:02:06]} 27. Kg1 {[%clk 0:01:05]}  Rbf8 {[%clk 0:01:37]} 28. Nxc7 {[%clk 0:00:58]}  Rf3 {[%clk 0:01:21]} 29. Qd1 {[%clk 0:00:41]}  g3 {[%clk 0:00:48]} 30. hxg3 {[%clk 0:00:31]}  Rgxg3+ {[%clk 0:00:47]} 0-1


[Site "https://www.chess.com"]

[Event "Titled Tuesday Blitz September 27 Early 2022"]
[White "Kravtsiv, Martyn"]
[Black "Reyes, Narquingden"]
[WhiteFideId "14113147"]
[BlackFideId "5217334"]
[WhiteElo "2694"]
[BlackElo "2313"]
[Result "1-0"]
[Round "06"]
[TimeControl "180+1"]
[Date "2022.09.27"]
[WhiteClock "0:01:22"]
[BlackClock "0:00:59"]

1. e4 {[%clk 0:03:00]}  c6 {[%clk 0:03:00]} 2. Nf3 {[%clk 0:03:00]}  d5 {[%clk 0:03:00]} 3. d3 {[%clk 0:03:01]}  Bg4 {[%clk 0:03:00]} 4. h3 {[%clk 0:03:00]}  Bh5 {[%clk 0:02:59]} 5. Qe2 {[%clk 0:02:57]}  Nf6 {[%clk 0:02:58]} 6. Nc3 {[%clk 0:02:56]}  d4 {[%clk 0:02:55]} 7. Nb1 {[%clk 0:02:54]}  e5 {[%clk 0:02:55]} 8. Nbd2 {[%clk 0:02:53]}  Nbd7 {[%clk 0:02:54]} 9. Nc4 {[%clk 0:02:47]}  b5 {[%clk 0:02:53]} 10. Ncd2 {[%clk 0:02:46]}  Bd6 {[%clk 0:02:53]} 11. g4 {[%clk 0:02:45]}  Bg6 {[%clk 0:02:53]} 12. Bg2 {[%clk 0:02:45]}  h5 {[%clk 0:02:50]} 13. Nh4 {[%clk 0:02:41]}  Nf8 {[%clk 0:02:47]} 14. f4 {[%clk 0:02:14]}  hxg4 {[%clk 0:02:40]} 15. hxg4 {[%clk 0:02:13]}  N6d7 {[%clk 0:02:07]} 16. Ndf3 {[%clk 0:01:51]}  exf4 {[%clk 0:02:01]} 17. Bd2 {[%clk 0:01:50]}  Ne5 {[%clk 0:01:53]} 18. O-O-O {[%clk 0:01:43]}  Nxg4 {[%clk 0:01:30]} 19. Nxd4 {[%clk 0:01:40]}  Rxh4 {[%clk 0:01:27]} 20. e5 {[%clk 0:01:33]}  Rxh1 {[%clk 0:01:09]} 21. exd6+ {[%clk 0:01:28]}  Kd7 {[%clk 0:01:04]} 22. Qxg4+ {[%clk 0:01:25]}  Kxd6 {[%clk 0:01:01]} 23. Qxf4+ {[%clk 0:01:24]}  Kc5 {[%clk 0:00:59]} 24. Nb3+ {[%clk 0:01:22]}  Kb6 {[%clk 0:00:59]} 25. Ba5+ {[%clk 0:01:22]} 1-0


[Site "https://www.chess.com"]

[Event "Titled Tuesday Blitz September 27 Early 2022"]
[White "Lauridsen, Jesper Morch"]
[Black "Janaszak, Dawid"]
[WhiteFideId "1401890"]
[BlackFideId "1119206"]
[WhiteElo "2250"]
[BlackElo "2165"]
[Result "0-1"]
[Round "06"]
[TimeControl "180+1"]
[Date "2022.09.27"]
[WhiteClock "0:00:39"]
[BlackClock "0:00:41"]

1. e4 {[%clk 0:03:00]}  g6 {[%clk 0:03:00]} 2. d4 {[%clk 0:03:00]}  Bg7 {[%clk 0:03:00]} 3. Nc3 {[%clk 0:02:59]}  d6 {[%clk 0:02:58]} 4. Be3 {[%clk 0:02:59]}  a6 {[%clk 0:02:58]} 5. h4 {[%clk 0:02:57]}  h6 {[%clk 0:02:57]} 6. h5 {[%clk 0:02:55]}  g5 {[%clk 0:02:56]} 7. f4 {[%clk 0:02:49]}  gxf4 {[%clk 0:02:56]} 8. Bxf4 {[%clk 0:02:49]}  Nc6 {[%clk 0:02:52]} 9. d5 {[%clk 0:02:39]}  Nd4 {[%clk 0:02:51]} 10. Be3 {[%clk 0:02:34]}  c5 {[%clk 0:02:50]} 11. dxc6 {[%clk 0:02:32]}  Nxc6 {[%clk 0:02:49]} 12. Nd5 {[%clk 0:02:28]}  Kf8 {[%clk 0:02:01]} 13. Bb6 {[%clk 0:02:17]}  Qd7 {[%clk 0:01:59]} 14. Nf3 {[%clk 0:02:06]}  Nf6 {[%clk 0:01:53]} 15. Bc4 {[%clk 0:01:36]}  Nxd5 {[%clk 0:01:36]} 16. Bxd5 {[%clk 0:01:24]}  Nb4 {[%clk 0:01:23]} 17. O-O {[%clk 0:01:12]}  Nxd5 {[%clk 0:01:07]} 18. exd5 {[%clk 0:01:12]}  Qg4 {[%clk 0:01:03]} 19. Nd4 {[%clk 0:00:50]}  Rg8 {[%clk 0:00:41]} 20. Ne6+ {[%clk 0:00:41]}  Bxe6 {[%clk 0:00:41]} 21. dxe6 {[%clk 0:00:39]}  Bd4+ {[%clk 0:00:41]} 0-1


[Site "https://www.chess.com"]